bitfinex/quotes_ETHUSD_20240530
["timestamp","ask_amount","ask_price","bid_price","bid_amount"]
[1717070782521,2.67158,3743.1,3743.0,0.06644728]
[1717070782851,2.67158,3743.1,3742.4,12.36]
[1717070783006,3.2496846,3743.1,3742.4,12.36]
[1717070783206,2.67158,3743.1,3742.4,12.36]
[1717070783450,2.67137,3743.4,3742.6,1.29789222]
[1717070783600,2.67151,3743.2,3742.6,1.29789222]
[1717070783807,2.67151,3743.2,3742.7,0.06681083]
[1717070784134,2.67151,3743.2,3742.7,1.29789222]
[1717070784309,2.67151,3743.2,3742.8,0.06678066]
[1717070785554,0.57808308,3743.1,3742.8,0.06678066]
[1717070785943,2.67165,3743.0,3742.8,0.06678066]
[1717070786267,2.67165,3743.0,3742.3,7.33]
[1717070786422,2.67165,3743.0,3742.4,1.36472461]
[1717070791636,2.67144,3743.3,3742.4,1.36472461]
[1717070791832,1.94238572,3743.2,3742.5,2.672]
[1717070792173,1.94238572,3743.2,3742.7,4.95115]
[1717070792359,0.57807667,3743.5,3742.8,1.29789222]
[1717070792557,1.94223806,3743.4,3742.8,1.36456101]
[1717070793192,1.94223806,3743.4,3742.8,1.99613211]
[1717070793371,0.57803356,3744.4,3743.4,2.4015]
[1717070793569,1.94184699,3744.3,3743.8,2.67107]
[1717070793749,0.99673283,3744.5,3743.8,2.67107]
[1717070793750,1.94184699,3744.2,3743.9,1.29789222]
[1717070793937,0.57790365,3744.9,3743.9,1.36416038]
[1717070794137,1.94164592,3744.8,3743.9,1.36416038]
[1717070794981,2.67044,3744.7,3743.9,1.36416038]
[1717070795153,1.94164592,3744.6,3743.9,1.36416038]
[1717070795332,2.40285451,3744.6,3743.9,0.06626816]
[1717070795539,6.99492592,3744.5,3743.9,0.06626816]
[1717070795771,1.94164592,3744.4,3743.9,0.06626816]
[1717070795985,2.5196048,3744.4,3743.4,5.07281]
[1717070796145,1.94164592,3744.3,3744.0,0.06602862]
[1717070796346,1.94164592,3744.3,3743.5,1.29789222]
[1717070796859,1.94164592,3744.3,3743.6,0.0661386]
[1717070797083,1.94164592,3744.3,3743.7,1.29789222]
[1717070797491,1.94164592,3744.3,3743.8,0.06607831]
[1717070797676,2.6708,3744.2,3743.8,0.06607831]
[1717070797985,1.94164592,3744.1,3743.4,2.67131]
[1717070798160,1.94164592,3744.1,3743.9,0.06603756]
[1717070798366,1.94164592,3744.1,3743.4,3.96920222]
[1717070798562,1.94164592,3744.1,3744.0,0.06598092]
[1717070798744,2.48323145,3744.1,3743.4,3.96920222]
[1717070798946,1.94164592,3744.0,3743.4,3.96920222]
[1717070799264,1.94164592,3743.9,3743.4,3.96920222]
[1717070799458,1.94164592,3743.8,3743.4,3.96920222]
[1717070799797,2.3827,3744.5,3743.5,1.29789222]
[1717070799947,2.51976499,3744.4,3743.5,1.29789222]
[1717070800152,1.9418414,3744.3,3743.5,1.29789222]
[1717070800499,4.6126414,3744.2,3743.3,18.94689453]
[1717070800797,2.67101,3743.9,3743.2,7.33]
[1717070800998,1.9418414,3743.8,3743.2,7.33]
[1717070801278,2.5198696,3743.8,3743.2,7.33]
[1717070801445,1.9418414,3743.7,3743.2,7.33]
[1717070802060,1.9418414,3743.7,3743.3,1.29789222]
[1717070802256,1.9418414,3743.6,3743.3,1.29789222]
[1717070802457,1.9418414,3743.5,3743.3,2.42784144]
[1717070802660,2.4366,3744.6,3743.3,3.96932222]
[1717070802661,2.67078,3744.3,3743.3,3.96932222]
[1717070802882,1.94194987,3744.2,3743.3,3.96932222]
[1717070803246,1.94194987,3744.2,3743.6,2.6712]
[1717070803448,1.94194987,3744.1,3743.7,1.29789222]
[1717070803688,2.51986004,3744.6,3743.7,1.29789222]
[1717070803999,2.6705,3744.7,3743.7,1.29789222]
[1717070804000,1.94194987,3744.5,3743.7,1.29789222]
[1717070804151,1.94194987,3744.4,3743.8,2.67106]
[1717070804360,2.6705,3744.7,3743.9,1.29789222]
[1717070804361,1.94194987,3744.3,3743.9,1.29789222]
[1717070804583,1.94194987,3744.2,3743.9,1.29789222]
[1717070804783,2.6705,3744.7,3743.9,1.29789222]
[1717070805098,1.94163242,3744.6,3743.9,1.29789222]
[1717070806498,1.94163242,3744.6,3744.0,3.06780522]
[1717070806704,2.67018,3745.1,3744.2,2.67077]
[1717070806705,1.94163242,3744.5,3744.2,2.67077]
[1717070806858,2.67018,3745.1,3744.2,3.96866222]
[1717070807059,1.94136156,3745.0,3744.2,3.96866222]
[1717070807467,1.94136156,3745.0,3744.3,1.29789222]
[1717070808316,1.94136156,3745.0,3744.4,5.0640754]
[1717070808498,2.66988,3745.5,3744.5,1.29789222]
[1717070808798,1.94131598,3745.4,3744.5,1.29789222]
[1717070808956,1.94131598,3745.4,3744.6,0.06540513]
[1717070809159,0.49821705,3745.3,3744.6,1.36329735]
[1717070809390,1.94131598,3745.2,3744.6,1.36329735]
[1717070811892,1.94131598,3745.2,3744.6,0.06540513]
[1717070811893,2.67021,3745.1,3744.6,0.06540513]
[1717070812129,1.94131598,3745.0,3744.6,0.06540513]
[1717070812401,2.45229028,3745.0,3744.3,7.33]
[1717070812695,1.94131598,3744.9,3744.3,7.33]
[1717070812857,1.94131598,3744.9,3744.4,0.0651395]
[1717070813059,2.66991,3745.5,3744.5,1.29789222]
[1717070813302,1.94145094,3745.4,3744.6,5.20166923]
[1717070813474,2.66962,3745.9,3744.8,2.6703]
[1717070813678,1.94109596,3745.8,3744.9,1.36289695]
[1717070814001,2.66962,3745.9,3745.0,2.67018]
[1717070814159,2.66933,3746.3,3745.2,2.67006]
[1717070814354,2.2497319,3746.2,3745.3,1.29789222]
[1717070814671,0.30877828,3746.2,3745.3,1.36277645]
[1717070814860,0.30877828,3746.2,3745.3,1.41617011]
[1717070815272,0.30877828,3746.2,3745.3,1.22028711]
[1717070815489,0.30877828,3746.2,3745.3,1.16689345]
[1717070818258,2.96728083,3746.1,3745.3,1.16689345]
[1717070818467,2.66947,3746.1,3745.3,1.16689345]
[1717070821940,2.2819,3746.0,3745.3,0.06488423]
[1717070822240,2.6699,3745.5,3745.3,0.06488423]
[1717070822401,2.6699,3745.5,3744.7,7.33]
[1717070822600,2.6699,3745.5,3745.4,0.06438533]
[1717070822794,2.93689,3745.5,3744.7,7.33]
[1717070823011,2.6699,3745.5,3744.7,7.33]
[1717070823214,2.6699,3745.5,3744.8,0.06456609]
[1717070824417,2.6701,3745.2,3744.8,0.06456609]
[1717070824818,5.1345,3745.2,3744.8,0.06456609]
[1717070825017,2.67022,3745.0,3744.8,0.06456609]
[1717070825223,2.67022,3745.0,3744.5,18.94689453]
[1717070825442,2.67022,3745.0,3744.9,0.06453596]
[1717070826054,2.67022,3745.0,3744.3,7.33]
[1717070826200,2.67022,3745.0,3744.9,0.06453596]
[1717070826407,2.67022,3745.0,3744.3,7.33]
[1717070826601,2.67022,3745.0,3744.9,0.06474781]
[1717070826834,2.67022,3745.0,3744.3,7.33]
[1717070827026,2.67022,3745.0,3744.9,0.06474781]
[1717070827234,2.67022,3745.0,3744.3,7.33]
[1717070827615,2.67022,3745.0,3744.4,0.06489848]
[1717070828829,2.67,3745.4,3744.5,1.29789222]
[1717070829206,2.67017,3745.1,3744.6,0.06483821]
[1717070829450,2.67017,3745.1,3744.7,2.4645]
[1717070829756,2.67017,3745.1,3744.8,0.06477794]
[1717070830112,2.67017,3745.1,3744.6,1.29789222]
[1717070830367,2.67017,3745.1,3744.9,0.06474781]
[1717070830660,2.67017,3745.1,3744.6,1.29789222]
[1717070830839,2.67017,3745.1,3745.0,0.06471768]
[1717070831012,2.67017,3745.1,3744.6,1.29789222]
[1717070831358,2.66993,3745.5,3744.6,2.65301144]
[1717070831565,2.66993,3745.5,3744.7,0.06480807]
[1717070832085,2.66993,3745.5,3744.8,2.4105]
[1717070832372,2.66961,3745.9,3744.9,0.57774396]
[1717070832519,0.57771557,3745.8,3745.0,1.29789222]
[1717070832719,2.66961,3745.9,3745.0,1.29789222]
[1717070832925,2.66961,3745.9,3745.1,0.06485176]
[1717070833113,2.66961,3745.9,3745.2,1.29789222]
[1717070833313,2.66961,3745.9,3745.1,0.06485176]
[1717070833314,2.66981,3745.6,3745.1,0.06485176]
[1717070833566,2.66981,3745.6,3745.3,0.06479151]
[1717070833872,2.66981,3745.6,3744.7,10.00042]
[1717070834015,2.66981,3745.6,3745.4,0.06476139]
[1717070834370,2.66981,3745.6,3744.7,11.29831222]
[1717070834570,2.66981,3745.6,3744.7,12.67022344]
[1717070834787,2.66981,3745.6,3744.8,0.06494214]
[1717070835495,2.67002,3745.3,3744.8,0.06494214]
[1717070837381,0.57777755,3745.2,3744.4,2.4208]
[1717070837591,0.57779155,3745.2,3744.9,0.06491201]
[1717070837790,0.57779155,3745.2,3744.5,1.29789222]
[1717070837974,0.57779155,3745.2,3745.0,0.06488188]
[1717070838323,2.67002,3745.3,3745.1,0.06485176]
[1717070838486,2.937022,3745.3,3745.1,0.06485176]
[1717070838820,0.57779649,3745.2,3744.5,1.29789222]
[1717070839966,0.57778824,3745.2,3744.5,1.29789222]
[1717070840393,2.67023,3745.0,3744.3,7.33]
[1717070840567,2.67023,3745.0,3744.1,2.3963]
[1717070840887,2.67023,3745.0,3744.2,1.29789222]
[1717070842881,1.9414696,3744.9,3744.2,1.29789222]
[1717070843508,2.67023,3745.0,3744.2,1.29789222]
[1717070844009,1.94148946,3744.9,3744.2,1.29789222]
[1717070844782,2.67042,3744.8,3744.1,2.4249]
[1717070844993,2.67042,3744.8,3744.1,3.72279222]
[1717070847210,1.94149414,3744.7,3744.1,3.72279222]
[1717070847911,1.94149414,3744.7,3744.1,1.29789222]
[1717070848211,2.67072,3744.4,3743.9,7.33]
[1717070848820,2.67087,3744.1,3743.4,19.69]
[1717070848992,2.67087,3744.1,3743.3,21.24919453]
[1717070849598,2.67087,3744.1,3743.4,1.29789222]
[1717070849995,2.67087,3744.1,3743.4,3.96925222]
[1717070852996,2.67061,3744.5,3743.4,3.96925222]
[1717070853183,2.51968995,3744.4,3743.4,3.96925222]
[1717070853383,2.51968995,3744.4,3743.6,2.67121]
[1717070853384,1.94176908,3744.3,3743.6,2.67121]
[1717070853620,1.94176908,3744.3,3743.7,1.70135332]
[1717070853820,2.67061,3744.5,3743.8,2.67107]
[1717070854158,2.2546,3745.0,3743.8,2.67107]
[1717070854159,1.94167146,3744.4,3743.9,3.74999222]
[1717070854332,0.57787805,3744.8,3743.9,3.81561625]
[1717070854666,1.94157159,3744.7,3744.0,0.68901474]
[1717070854779,1.94157159,3744.7,3744.1,1.29789222]
[1717070854984,1.94157159,3744.7,3744.1,1.36345596]
[1717070860832,4.61207159,3744.7,3744.1,1.36345596]
[1717070861066,1.94157159,3744.6,3744.1,1.36345596]
[1717070865331,2.51942146,3744.6,3744.1,1.36345596]
[1717070865653,4.61220159,3744.5,3744.1,0.06556374]
[1717070865853,2.51946984,3744.4,3744.1,0.06556374]
[1717070866063,1.94157159,3744.3,3743.6,9.6129]
[1717070866261,1.94157159,3744.3,3744.2,0.06529249]
[1717070866559,1.94157159,3744.3,3743.7,1.29789222]
[1717070866759,1.94157159,3744.3,3744.2,0.06529249]
[1717070866929,2.54208157,3744.3,3744.2,0.06529249]
[1717070867128,2.51946984,3744.3,3743.7,1.29789222]
[1717070867318,0.57789825,3744.4,3744.2,0.06529249]
[1717070867518,0.57789825,3744.4,3743.7,1.29789222]
[1717070867519,1.94171244,3744.3,3743.7,1.29789222]
[1717070868266,1.94171244,3744.3,3744.2,0.815]
[1717070868557,2.67028,3745.0,3744.3,2.2552]
[1717070868755,2.51925222,3744.9,3744.4,1.29789222]
[1717070868954,1.94143814,3744.8,3744.4,1.36311648]
[1717070869159,1.94138307,3744.7,3744.4,1.36311648]
[1717070869559,1.94138307,3744.6,3744.4,1.36311648]
[1717070869855,0.57781408,3744.9,3744.4,1.36311648]
[1717070870017,1.94137493,3744.8,3744.4,1.36311648]
[1717070870633,1.94137493,3744.7,3744.4,1.36311648]
[1717070870858,1.94137493,3744.6,3744.4,1.36311648]
[1717070871028,2.67028,3745.0,3744.4,1.36311648]
[1717070871239,1.94132835,3744.9,3744.4,1.36311648]
[1717070872059,1.94132835,3744.9,3744.4,4.69747783]
[1717070872282,1.94132835,3744.8,3744.4,4.69747783]
[1717070872425,0.57778708,3745.3,3744.4,4.69747783]
[1717070872763,1.94123517,3745.2,3744.4,4.69747783]
[1717070874157,1.94123517,3745.2,3744.4,4.03370648]
[1717070874371,4.61137517,3745.2,3744.4,4.03370648]
[1717070874570,2.51902225,3745.1,3744.4,4.03370648]
[1717070874719,1.94123517,3745.0,3744.4,4.03370648]
[1717070875663,1.94123517,3745.0,3744.4,1.36311648]
[1717070880045,4.61152517,3745.0,3744.4,1.36311648]
[1717070880245,1.94123517,3744.9,3744.4,1.36311648]
[1717070882495,2.51905202,3744.9,3744.4,1.36311648]
[1717070882668,1.94123517,3744.8,3744.4,1.36311648]
[1717070885292,1.94123517,3744.8,3744.4,0.06522426]
[1717070885498,2.69177937,3744.8,3744.4,0.06522426]
[1717070885700,1.94123517,3744.7,3744.1,10.00086]
[1717070885872,1.94123517,3744.7,3744.5,0.06505904]
[1717070886071,1.94123517,3744.7,3744.2,1.29789222]
[1717070886298,1.94123517,3744.7,3744.6,0.0650289]
[1717070886590,1.94123517,3744.7,3744.2,1.29789222]
[1717070886910,1.94123517,3744.7,3744.6,0.0650289]
[1717070887083,1.94123517,3744.7,3744.2,1.29789222]
[1717070887258,1.94123517,3744.7,3744.6,0.0650289]
[1717070887599,1.94123517,3744.7,3744.2,1.29789222]
[1717070887804,1.94123517,3744.7,3744.6,0.0650289]
[1717070887974,2.40240069,3744.7,3744.6,0.0650289]
[1717070888180,2.40240069,3744.7,3744.1,7.33]
[1717070888181,2.67053,3744.6,3744.1,7.33]
[1717070888364,2.3161,3745.1,3744.1,7.33]
[1717070888365,2.67066,3744.4,3744.1,7.33]
[1717070888694,2.51914907,3744.3,3743.7,2.2556]
[1717070888914,1.94123517,3744.2,3743.7,1.29789222]
[1717070889107,4.61209517,3744.2,3743.7,1.29789222]
[1717070889257,2.67094,3744.0,3743.5,7.33]
[1717070889462,1.94123517,3743.9,3743.5,8.62789222]
[1717070891590,1.94123517,3743.8,3743.5,8.62789222]
[1717070891794,1.94123517,3743.7,3743.5,8.62789222]
[1717070891960,2.67072,3744.3,3743.5,8.62789222]
[1717070892161,1.94176248,3744.2,3743.5,8.62789222]
[1717070892575,1.94176248,3744.2,3743.5,1.29789222]
[1717070893763,2.67088,3744.1,3743.5,1.29789222]
[1717070893964,3.33473378,3744.0,3743.5,1.29789222]
[1717070894186,1.94176248,3743.9,3743.5,1.29789222]
[1717070895509,2.67104,3743.9,3743.5,1.29789222]
[1717070897610,2.4252,3743.7,3743.1,7.33]
[1717070897789,0.815,3743.4,3743.0,18.94689453]
[1717070898266,0.815,3743.4,3743.1,0.06565859]
[1717070898267,2.67144,3743.3,3743.1,0.06565859]
[1717070899286,0.815,3743.2,3743.1,0.06565859]
[1717070901113,2.67144,3743.3,3743.1,0.06565859]
[1717070901484,2.67176,3742.9,3742.7,26.27689453]
[1717070901684,0.815,3742.8,3742.3,2.3902]
[1717070901892,0.815,3742.8,3742.3,4.3438816]
[1717070902079,2.67176,3742.9,3742.3,4.3438816]
[1717070903441,0.815,3742.8,3742.3,3.68809222]
[1717070903736,2.6719,3742.7,3742.1,7.33]
[1717070903895,0.815,3742.2,3742.1,7.33]
[1717070904276,2.02480635,3742.7,3741.7,18.94689453]
[1717070904624,2.6724,3742.0,3741.2,7.33]
[1717070904887,2.6724,3742.0,3741.2,8.62789222]
[1717070907315,4.9851,3742.0,3741.2,8.62789222]
[1717070910434,4.9851,3742.0,3741.3,1.29789222]
[1717070910625,2.67211,3742.4,3741.4,1.13008822]
[1717070910837,2.67211,3742.4,3741.5,1.29789222]
[1717070911460,2.67223,3742.2,3741.4,3.80287822]
[1717070911819,2.67223,3742.2,3741.5,1.29789222]
[1717070912157,2.67198,3742.6,3741.6,0.51007704]
[1717070912312,2.67198,3742.6,3741.7,3.63539222]
[1717070912716,2.67198,3742.6,3741.7,6.30794222]
[1717070913362,2.67198,3742.6,3741.8,0.06705009]
[1717070913656,2.2743,3743.0,3741.9,1.29789222]
[1717070913855,2.67168,3743.0,3742.0,2.98586634]
[1717070914007,2.67168,3743.0,3742.1,1.29789222]
[1717070914206,2.67168,3743.0,3742.2,0.06692939]
[1717070914440,4.99661,3743.4,3742.3,3.97002222]
[1717070914625,4.99661,3743.4,3742.3,4.03692144]
[1717070915826,2.67141,3743.4,3742.3,4.03692144]
[1717070916025,2.67141,3743.4,3742.5,2.67196]
[1717070916229,2.67141,3743.4,3742.6,1.95353061]
[1717070916549,2.67141,3743.4,3742.6,2.02033933]
[1717070918609,2.67141,3743.4,3742.7,2.67186]
[1717070918843,2.67141,3743.4,3742.8,0.06664234]
[1717070919036,2.3145,3743.8,3742.9,1.29789222]
[1717070919237,2.2688,3744.4,3743.0,0.40363946]
[1717070919444,2.2688,3744.4,3743.1,3.68579222]
[1717070919658,2.67084,3744.2,3743.3,2.67141]
[1717070919823,2.67084,3744.2,3743.4,1.29789222]
[1717070920025,2.67084,3744.2,3743.5,0.06642064]
[1717070923153,2.67053,3744.6,3743.6,3.96911222]
[1717070923560,2.67053,3744.6,3743.7,0.06580359]
[1717070924213,2.67075,3744.3,3743.7,0.06580359]
[1717070924417,2.937825,3744.3,3743.7,0.06580359]
[1717070924641,2.937825,3744.3,3743.2,2.67145]
[1717070924921,2.67075,3744.3,3743.8,0.06577344]
[1717070925150,2.67075,3744.3,3743.4,18.94689453]
[1717070925459,2.67075,3744.3,3743.5,1.29789222]
[1717070925760,2.67075,3744.3,3743.5,1.36375611]
[1717070926062,2.67075,3744.3,3743.5,2.35651975]
[1717070929722,2.4741,3744.2,3743.5,2.35651975]
[1717070930732,2.4741,3744.2,3743.5,1.36375611]
[1717070931580,2.67087,3744.1,3743.5,1.36375611]
[1717070931731,2.67087,3744.1,3743.5,0.06586389]
[1717070931935,2.67109,3743.8,3743.1,18.94689453]
[1717070932153,2.67109,3743.8,3743.6,0.06562437]
[1717070932356,2.67109,3743.8,3743.1,20.24478675]
[1717070932585,2.67109,3743.8,3743.7,0.06559422]
[1717070932768,2.67109,3743.8,3743.1,20.24478675]
[1717070932969,2.67109,3743.8,3743.7,0.06559422]
[1717070933447,2.67109,3743.8,3743.1,21.54282996]
[1717070933642,2.67109,3743.8,3743.7,0.06559422]
[1717070933861,2.67109,3743.8,3743.1,21.54282996]
[1717070934176,2.67109,3743.8,3743.7,0.06559422]
[1717070934378,2.67109,3743.8,3743.1,24.21438996]
[1717070934531,2.67109,3743.8,3743.7,0.06559422]
[1717070935047,2.67109,3743.8,3743.2,0.65563839]
[1717070935249,2.67109,3743.8,3743.7,0.06559422]
[1717070935451,2.67109,3743.8,3743.2,0.65563839]
[1717070935633,2.67109,3743.8,3743.7,0.06559422]
[1717070935833,2.67109,3743.8,3743.2,0.65563839]
[1717070936175,2.67109,3743.8,3743.3,0.06571483]
[1717070940137,2.67087,3744.1,3743.3,0.06571483]
[1717070940657,2.67107,3743.9,3743.3,0.06571483]
[1717070941047,2.67107,3743.9,3743.1,3.96945222]
[1717070941245,2.67107,3743.9,3743.2,0.06574498]
[1717070942766,0.24741,3744.1,3743.2,0.06574498]
[1717070942971,2.67135,3743.5,3743.2,0.06574498]
[1717070943172,2.67135,3743.5,3742.8,18.94689453]
[1717070943371,0.57806894,3743.4,3743.3,0.0658447]
[1717070943580,0.57806894,3743.4,3742.8,18.94689453]
[1717070943762,0.57806894,3743.4,3743.3,0.0658447]
[1717070943961,0.57806894,3743.4,3742.8,18.94689453]
[1717070944201,0.57806894,3743.4,3743.3,0.0658447]
[1717070944407,0.57806894,3743.4,3742.8,18.94689453]
[1717070944917,0.57806894,3743.4,3742.9,0.06596533]
[1717070945768,2.67145,3743.3,3742.9,0.06596533]
[1717070945969,4.95605,3743.3,3742.9,0.06596533]
[1717070946210,0.57808196,3743.2,3742.9,0.06596533]
[1717070946374,4.95605,3743.3,3742.9,0.06596533]
[1717070946887,2.67158,3743.1,3742.9,0.06596533]
[1717070948513,2.67158,3743.1,3742.5,26.27689453]
[1717070948717,2.67158,3743.1,3743.0,0.06593517]
[1717070948882,3.24968246,3743.1,3743.0,0.06593517]
[1717070949270,3.24968246,3743.1,3742.5,26.27689453]
[1717070949478,2.67158,3743.1,3743.0,0.06593517]
[1717070949708,3.24968141,3743.1,3742.5,26.27689453]
[1717070950024,3.24968141,3743.1,3743.0,0.06593517]
[1717070950025,2.67158,3743.1,3743.0,0.06593517]
[1717070950170,2.67158,3743.1,3742.5,26.27689453]
[1717070950375,2.67158,3743.1,3743.0,0.06593517]
[1717070950575,2.67158,3743.1,3742.5,26.27689453]
[1717070951089,2.67158,3743.1,3742.6,0.06605582]
[1717070952010,2.67172,3742.9,3742.6,0.06605582]
[1717070952739,2.67151,3743.2,3742.6,0.06605582]
[1717070954312,2.67166,3743.0,3742.6,0.06605582]
[1717070956239,1.94241133,3742.9,3742.6,0.06605582]
[1717070957197,1.94241133,3742.9,3742.6,0.01605582]
[1717070957397,1.94241133,3742.9,3742.6,0.06242393]
[1717070960242,1.94241133,3742.9,3742.2,18.94689453]
[1717070960444,1.94241133,3742.9,3742.7,0.06239726]
[1717070960631,1.94241133,3742.9,3742.3,1.29789222]
[1717070960832,1.94241133,3742.9,3742.8,0.0623671]
[1717070961148,1.94241133,3742.9,3742.3,1.29789222]
[1717070961303,1.94241133,3742.9,3742.8,0.0623671]
[1717070961508,1.94241133,3742.9,3742.3,1.29789222]
[1717070961703,1.94241133,3742.9,3742.8,0.0623671]
[1717070962011,1.94241133,3742.9,3742.3,1.29789222]
[1717070962410,1.94241133,3742.9,3742.4,0.06248776]
[1717070963936,0.815,3742.7,3742.4,0.06248776]
[1717070964144,0.815,3742.7,3742.0,7.33]
[1717070964391,0.815,3742.7,3742.5,0.06245759]
[1717070964392,1.94241886,3742.6,3742.5,0.06245759]
[1717070964520,1.94241886,3742.6,3742.1,1.29789222]
[1717070964872,1.94241886,3742.6,3742.5,0.06245759]
[1717070965019,1.94241886,3742.6,3742.1,1.29789222]
[1717070965219,1.94241886,3742.6,3742.2,0.0625481]
[1717070965456,1.94241886,3742.6,3742.2,1.36044032]
[1717070966854,4.61441886,3742.6,3742.2,0.0625481]
[1717070967028,0.815,3742.4,3742.2,0.0625481]
[1717070967354,0.815,3742.4,3742.3,0.06261607]
[1717070967520,0.815,3742.4,3742.0,7.33]
[1717070967715,3.48714,3742.4,3742.3,0.06261607]
[1717070967953,2.67214,3742.4,3742.0,7.33]
[1717070968121,2.67214,3742.4,3742.3,0.06261607]
[1717070968318,3.0,3743.5,3742.0,11.81409222]
[1717070968319,2.4372,3743.2,3742.0,11.81409222]
[1717070968519,2.67166,3743.0,3742.3,0.06261607]
[1717070968724,2.67166,3743.0,3742.3,1.36050829]
[1717070969668,2.91832,3744.1,3742.6,3.4869]
[1717070969669,2.67123,3743.6,3742.6,3.4869]
[1717070969881,2.67123,3743.6,3742.7,2.00623144]
[1717070970221,2.67123,3743.6,3742.7,2.06872684]
[1717070970535,3.48623,3743.6,3742.7,2.06872684]
[1717070970940,3.48623,3743.6,3742.8,2.67178]
[1717070971116,3.48623,3743.6,3742.9,1.29789222]
[1717070971322,2.67123,3743.6,3742.9,1.36032729]
[1717070971624,2.67123,3743.6,3742.9,1.41375644]
[1717070972663,2.962832,3744.0,3743.1,2.4514]
[1717070972864,2.01402532,3743.9,3743.1,2.4514]
[1717070973023,2.01402532,3743.9,3743.2,0.0614525]
[1717070973218,1.19902532,3743.9,3743.2,0.0614525]
[1717070973458,2.2697,3744.7,3743.3,3.96932222]
[1717070973459,2.67072,3744.4,3743.3,3.96932222]
[1717070973619,0.815,3744.1,3743.4,0.05342165]
[1717070973825,0.57794135,3744.3,3743.4,0.0613922]
[1717070974025,0.815,3744.1,3743.4,0.0613922]
[1717070975237,0.32486614,3744.2,3743.4,1.35928442]
[1717070975442,1.13986614,3744.2,3743.4,1.35928442]
[1717070976332,1.13986614,3744.2,3743.4,1.41270556]
[1717070976529,1.13986614,3744.2,3743.5,2.67126]
[1717070976731,0.815,3744.2,3743.5,2.73262204]
[1717070978164,2.67072,3744.4,3743.6,1.3513134]
[1717070978366,2.2697,3744.7,3743.9,2.67099]
[1717070978544,0.815,3744.5,3743.9,3.96888222]
[1717070978739,0.815,3744.5,3744.0,0.06089054]
[1717070979661,2.79667,3744.7,3744.0,0.06089054]
[1717070979861,0.815,3744.5,3744.0,0.06089054]
[1717070980228,1.34197,3744.7,3744.0,0.06089054]
[1717070985734,0.815,3744.7,3744.0,0.06089054]
[1717070985935,2.67041,3744.8,3744.0,1.35878276]
[1717070986961,0.815,3744.7,3744.0,1.35878276]
[1717070989143,0.815,3744.5,3744.0,1.35878276]
[1717070989549,0.815,3744.7,3744.0,1.35878276]
[1717070989750,1.163541,3744.7,3744.0,1.35878276]
[1717070992571,0.815,3744.7,3744.0,1.35878276]
[1717070992889,2.67041,3744.8,3744.0,1.41219576]
[1717070993187,2.67041,3744.8,3744.0,1.35878276]
[1717070993547,2.67041,3744.8,3744.0,1.41219577]
[1717070993862,2.67041,3744.8,3744.0,1.35878276]
[1717070994253,3.018951,3744.8,3744.0,1.35878276]
[1717070995688,3.018951,3744.8,3744.1,3.96869222]
[1717070995860,3.018951,3744.8,3744.1,4.02936712]
[1717070996257,2.67041,3744.8,3744.1,4.02936712]
[1717071001493,0.57783943,3744.7,3744.1,4.02936712]
[1717071002079,0.57783943,3744.7,3744.2,2.443]
[1717071002279,0.57783943,3744.7,3744.2,3.74089222]
[1717071002461,0.57783943,3745.0,3744.3,1.35844327]
[1717071002657,0.57783943,3745.0,3744.8,2.67035]
[1717071002860,0.57783943,3745.0,3744.3,2.0871676]
[1717071002861,0.57783943,3745.6,3745.0,2.67016]
[1717071003153,2.66952,3746.0,3745.1,0.815]
[1717071003154,0.57783943,3745.9,3745.1,0.815]
[1717071003358,0.57783943,3745.9,3745.1,0.87528085]
[1717071003787,2.66952,3746.0,3745.2,1.29789222]
[1717071003972,3.48452,3746.0,3745.2,1.35792842]
[1717071004296,4.066202,3746.0,3745.2,0.0600362]
[1717071004481,0.815,3745.8,3745.2,0.0600362]
[1717071004801,0.815,3745.8,3745.3,0.06000608]
[1717071005125,0.815,3745.8,3745.0,2.67016]
[1717071005306,0.815,3745.8,3745.4,0.05997596]
[1717071005595,0.815,3745.8,3745.0,3.96805222]
[1717071005779,0.5776924,3745.9,3745.5,0.05994584]
[1717071005959,3.48452,3746.0,3745.1,1.33161805]
[1717071006598,3.48452,3746.0,3745.2,0.05999384]
[1717071007172,3.48452,3746.0,3745.4,2.4386]
[1717071007173,2.66952,3746.0,3745.4,2.4386]
[1717071007653,2.66952,3746.0,3745.5,0.0598717]
[1717071009003,2.66928,3746.4,3745.5,0.0598717]
[1717071009188,0.815,3746.2,3745.5,0.0598717]
[1717071009862,2.66928,3746.4,3745.6,1.29789222]
[1717071010196,2.66928,3746.4,3745.7,0.8747744]
[1717071010397,0.815,3745.9,3745.7,0.0597744]
[1717071010623,0.815,3745.9,3745.3,7.33]
[1717071010797,0.0667485,3746.3,3745.8,0.05972046]
[1717071011104,0.0667485,3746.3,3745.3,7.33]
[1717071011105,0.815,3745.9,3745.3,7.33]
[1717071011269,0.815,3745.7,3745.3,7.33]
[1717071011499,2.66979,3745.6,3745.4,0.05984093]
[1717071012981,0.815,3745.9,3745.4,0.05984093]
[1717071013395,2.66956,3746.0,3745.4,0.05984093]
[1717071013621,2.66956,3746.0,3745.4,1.04253502]
[1717071016316,2.3901,3746.7,3745.5,1.29789222]
[1717071016630,2.3901,3746.7,3745.4,1.04253502]
[1717071016631,5.08094,3747.3,3746.0,2.66948]
[1717071016788,5.08094,3747.3,3746.3,2.66929]
[1717071016789,0.57759968,3747.2,3746.3,2.66929]
[1717071016986,2.66864,3747.3,3746.3,3.96718222]
[1717071017240,0.266864,3747.2,3746.4,0.0591717]
[1717071017422,2.66864,3747.3,3746.5,3.79649222]
[1717071017607,2.66864,3747.3,3746.5,3.85563382]
[1717071018812,2.66864,3747.3,3746.6,2.66907]
[1717071019002,2.66864,3747.3,3746.6,4.02607372]
[1717071019410,2.478,3747.3,3746.6,0.0591115]
[1717071019604,2.66917,3746.5,3746.0,7.33]
[1717071020823,2.66892,3746.9,3746.0,8.62789222]
[1717071021033,2.66892,3746.9,3746.1,3.79579222]
[1717071021326,2.66863,3747.3,3746.2,2.66935]
[1717071021527,2.66863,3747.3,3746.3,2.67740644]
[1717071022522,2.66863,3747.3,3746.4,2.66917]
[1717071022725,2.66863,3747.3,3746.5,1.29789222]
[1717071023114,2.66863,3747.3,3746.6,5.15198]
[1717071023328,2.66835,3747.7,3746.8,2.4829]
[1717071023532,2.66835,3747.7,3746.8,3.78079222]